[Event "SS Manhem Chess Week 2019 GM and IM tournaments"]
[Site "Molnlycke kulturhus, Biblioteksgatan 2, Molnlycke, Sweden"]
[Date "2019.08.10"]
[Round "1.6"]
[White "Borsuk, Konstantin"]
[Black "Renman, Nils-Gustaf"]
[Result "1-0"]
[TimeControl "90 minutes for 40 moves + 30 minutes for the rest of the game + 30 seconds per move from move one."]
[WhiteTitle "FM"]
[BlackTitle "IM"]
[WhiteFideId "14113406"]
[BlackFideId "1700367"]
[WhiteElo "2372"]
[BlackElo "2346"]

1. d4 {[%clk 01:30:52]} {[%emt 00:00:06]} d5 {[%clk 01:30:47]} {[%emt
00:00:13]} 2. c4 {[%clk 01:31:10]} {[%emt 00:00:11]} c6 {[%clk 01:31:10]}
{[%emt 00:00:08]} 3. Nc3 {[%clk 01:31:25]} {[%emt 00:00:14]} Nf6 {[%clk
01:31:32]} {[%emt 00:00:08]} 4. cxd5 {[%clk 01:27:35]} {[%emt 00:04:20]} cxd5
{[%clk 01:31:32]} {[%emt 00:00:31]} 5. Bf4 {[%clk 01:28:02]} {[%emt 00:00:03]}
Nc6 {[%clk 01:31:35]} {[%emt 00:00:27]} 6. e3 {[%clk 01:28:13]} {[%emt
00:00:19]} a6 {[%clk 01:31:47]} {[%emt 00:00:18]} 7. Bd3 {[%clk 01:26:13]}
{[%emt 00:02:29]} Bg4 {[%clk 01:30:43]} {[%emt 00:01:33]} 8. f3 {[%clk
01:23:19]} {[%emt 00:03:25]} Bh5 {[%clk 01:25:48]} {[%emt 00:05:25]} 9. Nge2
{[%clk 01:06:51]} {[%emt 00:16:58]} e6 {[%clk 01:25:55]} {[%emt 00:00:24]} 10.
O-O {[%clk 01:04:07]} {[%emt 00:03:13]} Bg6 {[%clk 01:20:59]} {[%emt 00:05:26]}
11. Rc1 {[%clk 01:03:50]} {[%emt 00:00:47]} Be7 {[%clk 01:17:54]} {[%emt
00:03:35]} 12. Na4 {[%clk 01:02:01]} {[%emt 00:02:20]} O-O {[%clk 01:10:10]}
{[%emt 00:08:13]} 13. Bxg6 {[%clk 00:55:58]} {[%emt 00:06:33]} hxg6 {[%clk
01:10:31]} {[%emt 00:00:09]} 14. a3 {[%clk 00:45:24]} {[%emt 00:11:04]} Rc8
{[%clk 01:03:54]} {[%emt 00:07:07]} 15. b4 {[%clk 00:41:51]} {[%emt 00:04:03]}
b5 {[%clk 01:01:41]} {[%emt 00:02:42]} 16. Nc5 {[%clk 00:39:03]} {[%emt
00:03:19]} Nd7 {[%clk 00:49:53]} {[%emt 00:12:18]} 17. Nxa6 {[%clk 00:29:46]}
{[%emt 00:09:47]} Nb6 {[%clk 00:50:02]} {[%emt 00:00:21]} 18. Rc3 {[%clk
00:27:36]} {[%emt 00:02:40]} Qd7 {[%clk 00:33:42]} {[%emt 00:16:50]} 19. Nc5
{[%clk 00:25:34]} {[%emt 00:02:32]} Qa7 {[%clk 00:32:08]} {[%emt 00:02:04]} 20.
Qd3 {[%clk 00:21:04]} {[%emt 00:05:00]} Nc4 {[%clk 00:32:17]} {[%emt 00:00:20]}
21. Rb3 {[%clk 00:21:15]} {[%emt 00:00:19]} e5 {[%clk 00:23:41]} {[%emt
00:09:06]} 22. Bg3 {[%clk 00:17:29]} {[%emt 00:04:17]} Rfe8 {[%clk 00:16:18]}
{[%emt 00:07:53]} 23. Bf2 {[%clk 00:12:03]} {[%emt 00:05:55]} exd4 {[%clk
00:13:35]} {[%emt 00:03:13]} 24. exd4 {[%clk 00:12:01]} {[%emt 00:00:33]} Bg5
{[%clk 00:12:32]} {[%emt 00:01:34]} 25. f4 {[%clk 00:11:48]} {[%emt 00:00:42]}
Qe7 {[%clk 00:11:25]} {[%emt 00:01:38]} 26. Re1 {[%clk 00:08:47]} {[%emt
00:03:31]} Bf6 {[%clk 00:11:28]} {[%emt 00:00:27]} 27. g3 {[%clk 00:05:34]}
{[%emt 00:03:43]} Qd6 {[%clk 00:10:07]} {[%emt 00:01:51]} 28. Rd1 {[%clk
00:05:38]} {[%emt 00:00:26]} g5 {[%clk 00:09:36]} {[%emt 00:01:00]} 29. Qf3
{[%clk 00:04:38]} {[%emt 00:01:29]} Ra8 {[%clk 00:07:22]} {[%emt 00:02:45]} 30.
Nc3 {[%clk 00:02:28]} {[%emt 00:02:40]} Rxa3 {[%clk 00:06:24]} {[%emt
00:01:28]} 31. Rxa3 {[%clk 00:02:04]} {[%emt 00:00:55]} Nxa3 {[%clk 00:06:51]}
{[%emt 00:00:03]} 32. Nxd5 {[%clk 00:01:47]} {[%emt 00:00:47]} Nc2 {[%clk
00:05:35]} {[%emt 00:01:47]} 33. Ne4 {[%clk 00:01:20]} {[%emt 00:00:57]} Rxe4
{[%clk 00:00:56]} {[%emt 00:05:09]} 34. Nxf6+ {[%clk 00:00:59]} {[%emt
00:00:51]} gxf6 {[%clk 00:00:58]} {[%emt 00:00:28]} 35. Qxe4 {[%clk 00:01:22]}
{[%emt 00:00:08]} N2xb4 {[%clk 00:01:20]} {[%emt 00:00:08]} 36. fxg5 {[%clk
00:00:47]} {[%emt 00:01:04]} fxg5 {[%clk 00:01:47]} {[%emt 00:00:03]} 37. d5
{[%clk 00:00:45]} {[%emt 00:00:32]} Ne7 {[%clk 00:02:10]} {[%emt 00:00:08]} 38.
Rb1 {[%clk 00:00:34]} {[%emt 00:00:41]} Nbxd5 {[%clk 00:01:07]} {[%emt
00:01:33]} 39. Rxb5 {[%clk 00:00:48]} {[%emt 00:00:16]} Qc6 {[%clk 00:00:36]}
{[%emt 00:01:01]} 40. Rb8+ {[%clk 00:00:39]} {[%emt 00:00:39]} Kg7 {[%clk
00:01:05]} {[%emt 00:00:02]} 41. Rb1 {[%clk 00:00:44]} {[%emt 00:00:24]} Qg6
{[%clk 00:00:31]} {[%emt 00:01:04]} 42. Bd4+ {[%clk 00:00:46]} {[%emt
00:00:29]} f6 {[%clk 00:00:56]} {[%emt 00:00:04]} 43. Qxg6+ {[%clk 00:00:59]}
{[%emt 00:00:17]} Kxg6 {[%clk 00:01:12]} {[%emt 00:00:14]} 44. Ra1 {[%clk
00:01:05]} {[%emt 00:00:24]} g4 {[%clk 00:30:28]} {[%emt 00:01:14]} 45. Ra4
{[%clk 00:30:12]} {[%emt 00:01:23]} Kf5 {[%clk 00:27:11]} {[%emt 00:03:47]} 46.
Kf2 {[%clk 00:25:49]} {[%emt 00:04:53]} Nc6 {[%clk 00:24:58]} {[%emt 00:02:44]}
47. Ke2 {[%clk 00:24:45]} {[%emt 00:01:34]} Ke6 {[%clk 00:16:11]} {[%emt
00:09:17]} 48. Bb2 {[%clk 00:21:05]} {[%emt 00:04:10]} f5 {[%clk 00:16:13]}
{[%emt 00:00:29]} 49. Ra6 {[%clk 00:20:24]} {[%emt 00:01:11]} Ndb4 {[%clk
00:14:23]} {[%emt 00:02:20]} 50. Rb6 {[%clk 00:20:11]} {[%emt 00:00:43]} Kd5
{[%clk 00:13:49]} {[%emt 00:01:04]} 51. Rb5+ {[%clk 00:20:06]} {[%emt
00:00:35]} Ke4 {[%clk 00:13:41]} {[%emt 00:00:38]} 52. Rc5 {[%clk 00:20:03]}
{[%emt 00:00:33]} 1-0

[Event "SS Manhem Chess Week 2019 GM and IM tournaments"]
[Site "Molnlycke kulturhus, Biblioteksgatan 2, Molnlycke, Sweden"]
[Date "2019.08.10"]
[Round "1.7"]
[White "Fries-Nielsen, Jens Ove"]
[Black "Hill, Alistair"]
[Result "1-0"]
[TimeControl "90 minutes for 40 moves + 30 minutes for the rest of the game + 30 seconds per move from move one."]
[WhiteTitle "IM"]
[WhiteFideId "1400142"]
[BlackFideId "432407"]
[WhiteElo "2351"]
[BlackElo "2224"]

1. d4 {[%clk 01:30:49]} {[%emt 00:00:11]} Nf6 {[%clk 01:30:54]} {[%emt
00:00:07]} 2. Nf3 {[%clk 01:31:07]} {[%emt 00:00:12]} c5 {[%clk 01:28:39]}
{[%emt 00:02:45]} 3. e3 {[%clk 01:30:49]} {[%emt 00:00:48]} g6 {[%clk
01:28:56]} {[%emt 00:00:13]} 4. a3 {[%clk 01:28:05]} {[%emt 00:03:14]} b6
{[%clk 01:24:14]} {[%emt 00:05:12]} 5. d5 {[%clk 01:27:27]} {[%emt 00:01:08]}
d6 {[%clk 01:23:01]} {[%emt 00:01:42]} 6. Bb5+ {[%clk 01:27:19]} {[%emt
00:00:38]} Bd7 {[%clk 01:21:55]} {[%emt 00:01:37]} 7. Bxd7+ {[%clk 01:27:03]}
{[%emt 00:00:46]} Nbxd7 {[%clk 01:20:33]} {[%emt 00:01:51]} 8. Nc3 {[%clk
01:26:44]} {[%emt 00:00:50]} Bg7 {[%clk 01:20:06]} {[%emt 00:00:57]} 9. O-O
{[%clk 01:26:45]} {[%emt 00:00:29]} O-O {[%clk 01:20:32]} {[%emt 00:00:04]} 10.
Qe2 {[%clk 01:26:00]} {[%emt 00:01:15]} a6 {[%clk 01:17:01]} {[%emt 00:04:01]}
11. Bd2 {[%clk 01:24:54]} {[%emt 00:01:36]} b5 {[%clk 01:10:28]} {[%emt
00:07:03]} 12. e4 {[%clk 01:21:11]} {[%emt 00:04:12]} Ng4 {[%clk 00:54:53]}
{[%emt 00:16:05]} 13. Ng5 {[%clk 01:18:58]} {[%emt 00:02:44]} Nge5 {[%clk
00:55:13]} {[%emt 00:00:10]} 14. b3 {[%clk 01:18:39]} {[%emt 00:00:50]} h6
{[%clk 00:49:55]} {[%emt 00:05:48]} 15. Nh3 {[%clk 01:18:45]} {[%emt 00:00:24]}
Nb6 {[%clk 00:42:59]} {[%emt 00:07:26]} 16. Rad1 {[%clk 01:10:49]} {[%emt
00:08:26]} Ned7 {[%clk 00:37:13]} {[%emt 00:06:16]} 17. Qg4 {[%clk 01:07:44]}
{[%emt 00:03:34]} c4 {[%clk 00:28:21]} {[%emt 00:09:23]} 18. b4 {[%clk
01:07:44]} {[%emt 00:00:30]} Na4 {[%clk 00:28:44]} {[%emt 00:00:06]} 19. Nxa4
{[%clk 01:06:12]} {[%emt 00:02:03]} bxa4 {[%clk 00:29:12]} {[%emt 00:00:02]} 20.
f4 {[%clk 01:05:36]} {[%emt 00:01:06]} a5 {[%clk 00:26:03]} {[%emt 00:03:39]}
21. bxa5 {[%clk 00:56:37]} {[%emt 00:09:30]} c3 {[%clk 00:22:55]} {[%emt
00:03:37]} 22. Be3 {[%clk 00:54:44]} {[%emt 00:02:23]} Rxa5 {[%clk 00:20:05]}
{[%emt 00:03:20]} 23. Rb1 {[%clk 00:50:54]} {[%emt 00:04:19]} Qc7 {[%clk
00:13:00]} {[%emt 00:07:35]} 24. Nf2 {[%clk 00:44:53]} {[%emt 00:06:31]} Raa8
{[%clk 00:10:30]} {[%emt 00:03:00]} 25. Nd3 {[%clk 00:43:15]} {[%emt 00:02:08]}
Rab8 {[%clk 00:08:56]} {[%emt 00:02:05]} 26. Nb4 {[%clk 00:42:23]} {[%emt
00:01:22]} Nc5 {[%clk 00:09:11]} {[%emt 00:00:15]} 27. f5 {[%clk 00:40:56]}
{[%emt 00:01:57]} Kh7 {[%clk 00:08:19]} {[%emt 00:01:22]} 28. Qh4 {[%clk
00:39:54]} {[%emt 00:01:32]} Nd7 {[%clk 00:02:11]} {[%emt 00:06:38]} 29. Qxe7
{[%clk 00:27:41]} {[%emt 00:12:43]} Rbe8 {[%clk 00:02:13]} {[%emt 00:00:28]} 30.
Qh4 {[%clk 00:12:27]} {[%emt 00:15:43]} Qc4 {[%clk 00:02:41]} {[%emt 00:00:02]}
31. Qh3 {[%clk 00:10:42]} {[%emt 00:02:16]} Qxe4 {[%clk 00:01:12]} {[%emt
00:01:59]} 32. Rbe1 {[%clk 00:09:11]} {[%emt 00:02:00]} g5 {[%clk 00:00:36]}
{[%emt 00:01:07]} 33. Bf2 {[%clk 00:07:11]} {[%emt 00:02:30]} Qc4 {[%clk
00:00:43]} {[%emt 00:00:23]} 34. Rd1 {[%clk 00:05:04]} {[%emt 00:02:37]} Nf6
{[%clk 00:00:46]} {[%emt 00:00:27]} 35. Bd4 {[%clk 00:04:57]} {[%emt 00:00:37]}
Re4 {[%clk 00:00:49]} {[%emt 00:00:27]} 36. Qxc3 {[%clk 00:04:22]} {[%emt
00:01:05]} Qxc3 {[%clk 00:00:52]} {[%emt 00:00:27]} 37. Bxc3 {[%clk 00:04:51]}
{[%emt 00:00:01]} Rc8 {[%clk 00:00:51]} {[%emt 00:00:30]} 38. Ba1 {[%clk
00:03:32]} {[%emt 00:01:50]} Ng4 {[%clk 00:00:49]} {[%emt 00:00:32]} 39. f6
{[%clk 00:03:47]} {[%emt 00:00:15]} Bf8 {[%clk 00:01:04]} {[%emt 00:00:15]} 40.
Rd4 {[%clk 00:02:35]} {[%emt 00:01:43]} Rxd4 {[%clk 00:01:01]} {[%emt
00:00:33]} 41. Bxd4 {[%clk 00:03:03]} {[%emt 00:00:02]} Kg6 {[%clk 00:00:32]}
{[%emt 00:00:58]} 42. Nc6 {[%clk 00:01:50]} {[%emt 00:01:44]} Re8 {[%clk
00:28:57]} {[%emt 00:02:05]} 43. c4 {[%clk 00:26:12]} {[%emt 00:06:08]} Ne5
{[%clk 00:19:14]} {[%emt 00:10:13]} 44. Bxe5 {[%clk 00:23:10]} {[%emt
00:03:32]} dxe5 {[%clk 00:19:37]} {[%emt 00:00:07]} 45. Ne7+ {[%clk 00:23:30]}
{[%emt 00:00:10]} Rxe7 {[%clk 00:15:42]} {[%emt 00:04:24]} 46. fxe7 {[%clk
00:23:55]} {[%emt 00:00:05]} Bxe7 {[%clk 00:16:09]} {[%emt 00:00:03]} 47. Rd1
{[%clk 00:22:24]} {[%emt 00:02:00]} Bd6 {[%clk 00:14:58]} {[%emt 00:01:41]} 48.
Kf1 {[%clk 00:20:20]} {[%emt 00:02:35]} Kf6 {[%clk 00:15:05]} {[%emt 00:00:23]}
49. Rb1 {[%clk 00:19:39]} {[%emt 00:01:11]} e4 {[%clk 00:14:34]} {[%emt
00:01:01]} 50. Rb6 {[%clk 00:16:09]} {[%emt 00:03:59]} Ke5 {[%clk 00:15:02]}
{[%emt 00:00:01]} 51. Ra6 {[%clk 00:12:15]} {[%emt 00:04:24]} f5 {[%clk
00:14:22]} {[%emt 00:01:10]} 52. Rxa4 {[%clk 00:12:42]} {[%emt 00:00:04]} f4
{[%clk 00:14:43]} {[%emt 00:00:09]} 53. Ra8 {[%clk 00:09:19]} {[%emt 00:03:53]}
Kd4 {[%clk 00:15:11]} {[%emt 00:00:01]} 54. Rd8 {[%clk 00:08:22]} {[%emt
00:01:27]} Be7 {[%clk 00:09:01]} {[%emt 00:06:40]} 55. Re8 {[%clk 00:08:25]}
{[%emt 00:00:27]} Bxa3 {[%clk 00:09:14]} {[%emt 00:00:17]} 56. Re6 {[%clk
00:08:20]} {[%emt 00:00:35]} g4 {[%clk 00:05:24]} {[%emt 00:04:20]} 57. d6
{[%clk 00:08:21]} {[%emt 00:00:29]} Bb4 {[%clk 00:05:49]} {[%emt 00:00:05]} 58.
d7 {[%clk 00:08:31]} {[%emt 00:00:20]} Ba5 {[%clk 00:06:17]} {[%emt 00:00:02]}
59. Rd6+ {[%clk 00:05:01]} {[%emt 00:04:01]} 1-0

[Event "SS Manhem Chess Week 2019 GM and IM tournaments"]
[Site "Molnlycke kulturhus, Biblioteksgatan 2, Molnlycke, Sweden"]
[Date "2019.08.10"]
[Round "1.8"]
[White "Kucuksari, Kaan"]
[Black "Malmstig, Erik"]
[Result "1-0"]
[TimeControl "90 minutes for 40 moves + 30 minutes for the rest of the game + 30 seconds per move from move one."]
[WhiteTitle "FM"]
[BlackTitle "FM"]
[WhiteFideId "6380166"]
[BlackFideId "1702866"]
[WhiteElo "2286"]
[BlackElo "2335"]

1. d4 {[%clk 01:30:58]} Nf6 {[%clk 01:30:54]} {[%emt 00:00:06]} 2. Nf3 {[%clk
01:31:13]} {[%emt 00:00:15]} g6 {[%clk 01:30:55]} {[%emt 00:00:29]} 3. c4
{[%clk 01:31:23]} {[%emt 00:00:21]} Bg7 {[%clk 01:31:16]} {[%emt 00:00:07]} 4.
g3 {[%clk 01:31:37]} {[%emt 00:00:16]} O-O {[%clk 01:31:12]} {[%emt 00:00:34]}
5. Bg2 {[%clk 01:32:00]} {[%emt 00:00:08]} c5 {[%clk 01:30:52]} {[%emt
00:00:51]} 6. O-O {[%clk 01:28:06]} {[%emt 00:04:25]} d6 {[%clk 01:30:20]}
{[%emt 00:01:01]} 7. Nc3 {[%clk 01:28:10]} {[%emt 00:00:26]} Na6 {[%clk
01:28:04]} {[%emt 00:02:46]} 8. d5 {[%clk 01:27:38]} {[%emt 00:01:02]} Bf5
{[%clk 01:26:02]} {[%emt 00:02:31]} 9. Nd2 {[%clk 01:24:35]} {[%emt 00:03:33]}
Qc8 {[%clk 01:25:32]} {[%emt 00:01:00]} 10. b3 {[%clk 01:23:26]} {[%emt
00:01:39]} Bh3 {[%clk 01:19:26]} {[%emt 00:06:36]} 11. Bb2 {[%clk 01:23:10]}
{[%emt 00:00:46]} Nc7 {[%clk 01:17:24]} {[%emt 00:02:32]} 12. e4 {[%clk
01:21:58]} {[%emt 00:01:43]} h5 {[%clk 01:14:29]} {[%emt 00:03:25]} 13. Qc2
{[%clk 01:18:22]} {[%emt 00:04:06]} h4 {[%clk 01:12:53]} {[%emt 00:02:06]} 14.
Rae1 {[%clk 01:16:20]} {[%emt 00:02:33]} Re8 {[%clk 00:52:46]} {[%emt
00:20:37]} 15. Nf3 {[%clk 01:11:12]} {[%emt 00:05:38]} Bxg2 {[%clk 00:45:34]}
{[%emt 00:07:42]} 16. Kxg2 {[%clk 01:11:35]} {[%emt 00:00:06]} hxg3 {[%clk
00:43:46]} {[%emt 00:02:18]} 17. hxg3 {[%clk 01:10:17]} {[%emt 00:01:48]} Qg4
{[%clk 00:41:42]} {[%emt 00:02:34]} 18. e5 {[%clk 01:06:35]} {[%emt 00:04:13]}
dxe5 {[%clk 00:33:48]} {[%emt 00:08:23]} 19. Nxe5 {[%clk 01:06:56]} {[%emt
00:00:09]} Qf5 {[%clk 00:30:59]} {[%emt 00:03:19]} 20. Qxf5 {[%clk 00:54:39]}
{[%emt 00:12:46]} gxf5 {[%clk 00:31:12]} {[%emt 00:00:17]} 21. Re2 {[%clk
00:48:07]} {[%emt 00:07:03]} Rad8 {[%clk 00:29:48]} {[%emt 00:01:54]} 22. Nd3
{[%clk 00:35:28]} {[%emt 00:13:09]} Nd7 {[%clk 00:24:59]} {[%emt 00:05:19]} 23.
Rfe1 {[%clk 00:32:48]} {[%emt 00:03:10]} Kf8 {[%clk 00:21:46]} {[%emt
00:03:43]} 24. a4 {[%clk 00:23:13]} {[%emt 00:10:06]} Na6 {[%clk 00:03:16]}
{[%emt 00:19:00]} 25. Nb5 {[%clk 00:18:57]} {[%emt 00:04:45]} Bxb2 {[%clk
00:03:37]} {[%emt 00:00:09]} 26. Nxb2 {[%clk 00:15:21]} {[%emt 00:04:06]} Ra8
{[%clk 00:03:23]} {[%emt 00:00:44]} 27. Nd1 {[%clk 00:12:28]} {[%emt 00:03:22]}
Nf6 {[%clk 00:02:44]} {[%emt 00:01:09]} 28. Re5 {[%clk 00:08:35]} {[%emt
00:04:23]} f4 {[%clk 00:02:54]} {[%emt 00:00:19]} 29. gxf4 {[%clk 00:08:25]}
{[%emt 00:00:41]} Ng8 {[%clk 00:02:36]} {[%emt 00:00:48]} 30. Rg5 {[%clk
00:04:09]} {[%emt 00:04:46]} e6 {[%clk 00:01:31]} {[%emt 00:01:35]} 31. d6
{[%clk 00:02:18]} {[%emt 00:02:22]} Red8 {[%clk 00:01:10]} {[%emt 00:00:50]} 32.
f5 {[%clk 00:01:26]} {[%emt 00:01:22]} e5 {[%clk 00:00:54]} {[%emt 00:00:46]}
33. f6 {[%clk 00:00:53]} {[%emt 00:01:02]} Nb4 {[%clk 00:00:49]} {[%emt
00:00:35]} 34. Rh1 {[%clk 00:00:36]} {[%emt 00:00:47]} Nd3 {[%clk 00:00:50]}
{[%emt 00:00:29]} 35. Rh8 {[%clk 00:00:40]} {[%emt 00:00:27]} Nf4+ {[%clk
00:01:15]} {[%emt 00:00:06]} 36. Kf3 {[%clk 00:00:44]} {[%emt 00:00:25]} Ng6
{[%clk 00:01:39]} {[%emt 00:00:05]} 37. Rxg6 {[%clk 00:00:44]} {[%emt
00:00:31]} fxg6 {[%clk 00:02:02]} {[%emt 00:00:07]} 38. Ne3 {[%clk 00:00:34]}
{[%emt 00:00:40]} Kf7 {[%clk 00:01:06]} {[%emt 00:01:26]} 39. Rh7+ {[%clk
00:00:52]} {[%emt 00:00:12]} Kxf6 {[%clk 00:01:23]} {[%emt 00:00:12]} 40. Nd5+
{[%clk 00:00:53]} {[%emt 00:00:29]} Kg5 {[%clk 00:01:13]} {[%emt 00:00:40]} 41.
Nbc7 {[%clk 00:00:54]} {[%emt 00:00:29]} e4+ {[%clk 00:24:14]} {[%emt
00:07:29]} 42. Kxe4 {[%clk 00:17:04]} {[%emt 00:14:20]} Rxd6 {[%clk 00:23:06]}
{[%emt 00:01:38]} 43. Nxa8 {[%clk 00:13:31]} {[%emt 00:04:03]} Rxd5 {[%clk
00:23:21]} {[%emt 00:00:16]} 44. cxd5 {[%clk 00:13:48]} {[%emt 00:00:13]} Nf6+
{[%clk 00:23:41]} {[%emt 00:00:09]} 45. Ke5 {[%clk 00:14:16]} {[%emt 00:00:02]}
Nxh7 {[%clk 00:24:01]} {[%emt 00:00:10]} 46. Nc7 {[%clk 00:14:21]} {[%emt
00:00:25]} Kg4 {[%clk 00:16:59]} {[%emt 00:07:33]} 47. Ne6 {[%clk 00:14:34]}
{[%emt 00:00:16]} 1-0

[Event "SS Manhem Chess Week 2019 GM and IM tournaments"]
[Site "Molnlycke kulturhus, Biblioteksgatan 2, Molnlycke, Sweden"]
[Date "2019.08.10"]
[Round "1.9"]
[White "Ornstein, Axel"]
[Black "Jacobsen, Mikkel Manosri"]
[Result "0-1"]
[TimeControl "90 minutes for 40 moves + 30 minutes for the rest of the game + 30 seconds per move from move one."]
[WhiteTitle "IM"]
[BlackTitle "FM"]
[WhiteFideId "1700111"]
[BlackFideId "1444514"]
[WhiteElo "2311"]
[BlackElo "2269"]

1. d4 {[%clk 01:30:47]} {[%emt 00:00:12]} Nf6 {[%clk 01:30:54]} {[%emt
00:00:06]} 2. c4 {[%clk 01:31:13]} {[%emt 00:00:04]} e6 {[%clk 01:31:20]}
{[%emt 00:00:04]} 3. Nc3 {[%clk 01:31:36]} {[%emt 00:00:06]} d5 {[%clk
01:31:43]} {[%emt 00:00:07]} 4. Bg5 {[%clk 01:29:37]} {[%emt 00:02:29]} Nbd7
{[%clk 01:31:48]} {[%emt 00:00:25]} 5. e3 {[%clk 01:29:55]} {[%emt 00:00:13]}
Be7 {[%clk 01:32:09]} {[%emt 00:00:08]} 6. Nf3 {[%clk 01:28:37]} O-O {[%clk
01:32:31]} {[%emt 00:01:56]} 7. Rc1 {[%clk 01:28:46]} Re8 {[%clk 01:32:17]}
{[%emt 00:01:06]} 8. Bd3 {[%clk 01:28:08]} h6 {[%clk 01:31:42]} {[%emt
00:02:14]} 9. Bh4 {[%clk 01:27:23]} dxc4 {[%clk 01:29:39]} {[%emt 00:03:48]} 10.
Bxc4 {[%clk 01:27:44]} a6 {[%clk 01:30:04]} {[%emt 00:00:14]} 11. a4 {[%clk
01:25:23]} c5 {[%clk 01:25:35]} {[%emt 00:07:49]} 12. O-O {[%clk 01:25:33]}
cxd4 {[%clk 01:16:01]} {[%emt 00:10:25]} 13. Nxd4 {[%clk 01:25:14]} Ne5 {[%clk
01:14:58]} {[%emt 00:02:21]} 14. Ba2 {[%clk 01:23:26]} Bd7 {[%clk 01:14:51]}
{[%emt 00:02:55]} 15. Bg3 {[%clk 01:18:07]} {[%emt 00:05:49]} Nc6 {[%clk
01:13:48]} {[%emt 00:01:33]} 16. Nf3 {[%clk 01:08:16]} {[%emt 00:10:22]} Qa5
{[%clk 01:09:30]} {[%emt 00:04:47]} 17. Qb3 {[%clk 01:02:26]} {[%emt 00:06:20]}
Nb4 {[%clk 00:51:03]} {[%emt 00:18:56]} 18. Bb1 {[%clk 01:02:50]} {[%emt
00:00:06]} Nh5 {[%clk 00:51:16]} {[%emt 00:00:16]} 19. Rfd1 {[%clk 01:02:52]}
{[%emt 00:00:29]} Red8 {[%clk 00:50:54]} {[%emt 00:00:52]} 20. Bc7 {[%clk
00:43:37]} Qxc7 {[%clk 00:49:59]} {[%emt 00:21:08]} 21. Nd5 {[%clk 00:44:01]}
Qd6 {[%clk 00:47:16]} {[%emt 00:03:20]} 22. Nc7 {[%clk 00:43:48]} Rac8 {[%clk
00:44:52]} {[%emt 00:03:37]} 23. Rxd6 {[%clk 00:44:10]} Bxd6 {[%clk 00:45:17]}
{[%emt 00:00:14]} 24. Rc4 {[%clk 00:38:26]} Bc6 {[%clk 00:33:40]} {[%emt
00:18:20]} 25. Be4 {[%clk 00:24:42]} Rxc7 {[%clk 00:31:00]} {[%emt 00:17:25]}
0-1